Cogmind - Beta 10.2 --- EXPLORER MODE // 2020.11.11 @ 17:41:06 // Halloween2020/ForbiddenLore Player: 1Q84 Result: Self-destructed Performance ------------- Evolutions (7) 3500 Regions Visited (23) 4600 Robots Destroyed (124) 620 Value Destroyed (4643) 4643 Prototype IDs (43) 860 Alien Tech Used (2) 400 Bonus (5646) 5646 TOTAL SCORE: 20269 Bonus ------- Triggered Max Security 1000 High Alert Combat Kills 166 Follower Combat Kills 707 Network Hubs Disabled 200 Aligned with FarCom 300 Met Data Miner 300 Used Core Reset Matrix 3000 Friendly Fire -27 Cogmind --------- Core Integrity 581/1300 Matter 142/300 Energy 80/100 System Corruption 6% Temperature Cool (0) Movement Core (400) Ox7 Location -3/Quarantine Parts ------- > --- POWER (3) -------- (None) > --- PROPULSION (7) --- (None) > --- UTILITY (10) ----- Large Storage Unit Hacking Suite > --- WEAPON (2) ------- Enhanced Force Lance > --- INVENTORY (10) --- Terrain Scanner Mini Drone Bay (3/3) Subatomic Replicator Heavy Shock Bomb Launcher Makeshift Spear Sigix Corpse Peak State ------------ > --- POWER ------------ Neutrino Core Micro Fission Core Micro Fission Core > --- PROPULSION ------- Q-thruster Impulse Thruster Array Impulse Thruster Array > --- UTILITY ---------- Large Storage Unit Energy Well Advanced Weight Redist. System Triangulator Improved Transmission Jammer Focal Shield Hacking Suite System Guard Advanced Recalibrator > --- WEAPON ----------- Makeshift Spear Enhanced Force Lance > --- INVENTORY -------- Terrain Scanner Mini Drone Bay Heavy Shock Bomb Launcher Sigix Corpse [Rating: 112] Favorites ----------- Power Micro Nuclear Core Engine Light Deuterium Engine Power Core Micro Nuclear Core Propulsion Carbon-fiber Leg Leg Carbon-fiber Leg Flight Unit Nuclear Pulse Thruster Utility Large Storage Unit Device Improved Cooling System Storage Large Storage Unit Processor Signal Interpreter Hackware Hacking Suite Protection Hardened Light Armor Plating Weapon Heavy Particle Cannon Energy Gun Arc Projector Energy Cannon Heavy Particle Cannon Ballistic Gun Light Assault Rifle Launcher Rocket Launcher Special Weapon Enhanced Flamer Impact Weapon Shock Maul Slashing Weapon Longsword +1 Piercing Weapon Enhanced Force Lance Build | -11 -10 -10 -9 -9 -9 -8 -8 -7 -7 -7 -7 -6 -6 -5 -5 -5 -4 -4 -4 -4 -4 -3 -3 ------- Run | Scr Mat Min Mat Min Exi Min Mat Fac Low Low Dat Pro Fac Fac Upp Upp Fac Ext Cet Arc Hub Res Qua Slots Evolved 15 | . 1 . 2 . . . 2 2 . . . . 2 2 . . 2 . . . . 2 . Power 2 | . . . . . . . . . . . . . 1 . . . . . . . . 1 . Propulsion 5 | . . . 1 . . . 1 . . . . . . 1 . . 1 . . . . 1 . Utility 8 | . 1 . 1 . . . 1 2 . . . . 1 1 . . 1 . . . . . . Weapon . | . . . . . . . . . . . . . . . . . . . . . . . . Parts Attached 151 | 6 9 4 17 3 . 2 13 4 2 1 . 4 27 14 5 . 5 7 2 3 2 17 4 Power 24 | 1 1 2 4 2 . . 1 1 . . . . 4 4 . . . . . . . 2 2 Engine 10 | 1 1 2 3 1 . . 1 . . . . . 1 . . . . . . . . . . Core 14 | . . . 1 1 . . . 1 . . . . 3 4 . . . . . . . 2 2 Reactor . | . . . . . . . . . . . . . . . . . . . . . . . . Propulsion 40 | 1 3 . 5 . . 1 4 2 . . . 1 8 7 . . 2 . . . . 5 1 Treads . | . . . . . . . . . . . . . . . . . . . . . . . . Leg 21 | 1 3 . 5 . . 1 4 2 . . . 1 4 . . . . . . . . . . Wheel . | . . . . . . . . . . . . . . . . . . . . . . . . Hover . | . . . . . . . . . . . . . . . . . . . . . . . . Flight 19 | . . . . . . . . . . . . . 4 7 . . 2 . . . . 5 1 Utility 47 | 2 3 . 2 . . 1 6 . 1 1 . . 12 2 5 . 2 2 . 1 . 7 . Device 27 | . 2 . . . . . 2 . 1 . . . 7 1 5 . 2 1 . . . 6 . Storage 7 | 1 1 . . . . 1 . . . . . . 1 . . . . 1 . 1 . 1 . Processor 1 | . . . 1 . . . . . . . . . . . . . . . . . . . . Hackware 5 | . . . . . . . . . . . . . 4 1 . . . . . . . . . Protection 7 | 1 . . 1 . . . 4 . . 1 . . . . . . . . . . . . . Artifact . | . . . . . . . . . . . . . . . . . . . . . . . . Weapon 40 | 2 2 2 6 1 . . 2 1 1 . . 3 3 1 . . 1 5 2 2 2 3 1 Energy Gun 12 | 2 2 1 4 . . . 1 . . . . 1 . . . . . . . 1 . . . Energy Cannon 9 | . . . 2 . . . 1 1 . . . 2 2 1 . . . . . . . . . Ballistic Gun 1 | . . . . 1 . . . . . . . . . . . . . . . . . . . Ballistic Cannon . | . . . . . . . . . . . . . . . . . . . . . . . . Launcher 5 | . . . . . . . . . 1 . . . . . . . . 1 1 . 1 1 . Special Weapon 5 | . . 1 . . . . . . . . . . . . . . 1 2 1 . . . . Impact Weapon 1 | . . . . . . . . . . . . . . . . . . . . . . 1 . Slashing Weapon 4 | . . . . . . . . . . . . . 1 . . . . 2 . 1 . . . Piercing Weapon 3 | . . . . . . . . . . . . . . . . . . . . . 1 1 1 Special Melee Weapon . | . . . . . . . . . . . . . . . . . . . . . . . . Unidentified Prototypes 10 | . . . 1 . . . . . . . . 1 1 1 . . 2 1 . . . 2 1 Parts Lost 53 | . 1 1 6 1 . . 1 . . . . 6 3 4 1 1 1 1 6 3 2 4 11 Power 5 | . . . 1 . . . . . . . . . . 1 . . . . . 1 . 1 1 Propulsion 11 | . . . 1 . . . . . . . . 1 . 1 . . 1 . 1 . 1 2 3 Utility 24 | . . . 3 . . . . . . . . 3 2 1 1 1 . 1 3 1 . 1 7 Weapon 13 | . 1 1 1 1 . . 1 . . . . 2 1 1 . . . . 2 1 1 . . Highest Loss Streak 8 | . 1 1 3 1 . . 1 . . . . 5 2 4 1 1 1 1 3 3 1 4 8 Average Slot Usage (%) 89 | . 99 99 91 78 80 90 96 79 86 95 100 92 92 89 88 91 82 82 72 65 54 58 50 Engine 3 | . 12 11 5 2 . . 5 7 . . . . 4 . . . . . . . . . . Core 6 | . . . 4 6 10 10 2 . 7 7 7 7 6 10 11 11 10 10 10 9 5 9 7 Leg 21 | . 25 25 28 30 30 30 32 28 28 28 28 26 19 . . . . . . . . . . Flight 4 | . . . . . . . . . . . . . 4 25 27 27 25 20 17 15 15 11 8 Device 11 | . 12 12 5 . . . 5 7 8 14 14 11 24 15 10 16 17 20 16 9 5 13 16 Storage 11 | . 12 12 10 10 10 20 16 14 14 14 14 14 10 5 5 5 5 8 10 15 14 9 8 Hackware 4 | . . . . . . . . . . . . . 8 24 27 24 20 18 14 10 10 5 4 Protection 9 | . 12 12 10 10 10 10 16 14 14 16 21 18 2 . . . . . . . . . . Energy Gun 4 | . 24 17 10 . . . . 7 7 7 7 7 . . . . . . . 1 . . . Energy Cannon 3 | . . . 3 13 10 10 7 1 1 . . 1 3 . . . . . . . . . . Ballistic Gun 1 | . . . . 6 10 10 7 . . . . . . . . . . . . . . . . Launcher 1 | . . . . . . . . . 5 7 7 5 . . . . . 1 . . . . . Slashing Weapon 1 | . . . . . . . . . . . . . 3 5 5 5 . . . 5 3 . . Naked Turns . | . . . . . . . . . . . . . . . . . . . . . . . . Heaviest Build 72 | 17 26 30 31 34 29 45 64 68 68 72 72 72 67 44 46 33 39 42 45 59 45 47 61 Greatest Support 96 | 10 20 20 45 45 45 45 60 65 65 65 65 78 96 46 41 33 56 56 56 48 48 67 65 Greatest Overweight (x) 10 | 5 1 1 1 . . . 2 1 1 1 1 1 3 1 1 . . . . 1 . 1 10 Average Overweight (x) . | 1 . 1 . . . . . . 1 1 1 . . . . . . . . . . . . Largest Inventory Capacity 16 | 8 10 10 10 10 10 16 16 16 16 16 16 16 16 10 10 10 10 10 10 16 16 16 10 Average Capacity 13 | 7 8 10 10 10 10 16 16 16 16 16 16 16 14 10 10 10 10 10 10 15 16 10 10 Most Carried 16 | 4 7 10 10 10 10 10 16 16 16 16 16 16 16 10 10 10 10 10 10 5 5 5 6 Average Carried 11 | 1 4 9 9 9 9 9 14 15 16 16 16 15 13 9 9 9 8 8 6 4 4 3 5 Final Capacity 16 | 8 10 10 10 10 10 16 16 16 16 16 16 16 10 10 10 10 10 10 10 16 16 10 10 Final Carried 16 | 4 7 9 10 9 10 10 15 16 16 16 16 15 10 8 8 10 8 9 6 4 5 3 6 Class Distribution -------------------- 70% | Hacker-Mutant 11% | Wizard-Sprinter 7% | Hacker-Assassin 4% | Hacker-Sprinter Dominant Class ---------------- Hacker-Mutant | -10/Materials Hacker-Mutant | -10/Mines Hacker-Mutant | -9/Materials Hacker-Mutant | -9/Mines Hacker-Mutant | -9/Exiles Hacker-Mutant | -8/Mines Hacker-Mutant | -8/Materials Hacker-Mutant | -7/Factory Hacker-Mutant | -7/Lower Caves Hacker-Mutant | -7/Lower Caves Hacker-Mutant | -7/Data Miner Hacker-Mutant | -6/Proximity Caves Hacker-Assassin | -6/Factory Wizard-Sprinter | -5/Factory Wizard-Sprinter | -5/Upper Caves Wizard-Sprinter | -5/Upper Caves Wizard-Sprinter | -4/Factory Wizard-Sprinter | -4/Extension Hacker-Sprinter | -4/Cetus Hacker-Mutant | -4/Archives Hacker-Sprinter | -4/Hub_04(d) Hacker-Sprinter | -3/Research Hacker-Mutant | -3/Quarantine Resources | -11 -10 -10 -9 -9 -9 -8 -8 -7 -7 -7 -7 -6 -6 -5 -5 -5 -4 -4 -4 -4 -4 -3 -3 ----------- Run | Scr Mat Min Mat Min Exi Min Mat Fac Low Low Dat Pro Fac Fac Upp Upp Fac Ext Cet Arc Hub Res Qua Matter Collected 2176 | 196 118 57 135 85 . 10 166 33 60 56 . 281 265 125 25 20 . 318 8 156 . 62 . Remotely . | . . . . . . . . . . . . . . . . . . . . . . . . Salvage Created 4916 | . 230 169 735 181 . . 906 . 25 97 . 460 1094 223 . 74 . 166 . 189 . 244 123 Parts 277 | . 11 16 38 15 . . 42 . 2 9 . 26 60 13 . 3 . 13 1 5 . 15 8 Haulers Intercepted 2 | . . . . . . . 1 . . . . . 1 . . . . . . . . . . Recyclers Shooed 3 | . . . . 1 . . 2 . . . . . . . . . . . . . . . . Parts Field Recycled . | . . . . . . . . . . . . . . . . . . . . . . . . Retrieved Matter . | . . . . . . . . . . . . . . . . . . . . . . . . Parts Self-Destructed . | . . . . . . . . . . . . . . . . . . . . . . . . Prevented . | . . . . . . . . . . . . . . . . . . . . . . . . Kills | -11 -10 -10 -9 -9 -9 -8 -8 -7 -7 -7 -7 -6 -6 -5 -5 -5 -4 -4 -4 -4 -4 -3 -3 ------- Run | Scr Mat Min Mat Min Exi Min Mat Fac Low Low Dat Pro Fac Fac Upp Upp Fac Ext Cet Arc Hub Res Qua Combat Hostiles Destroyed 106 | . 6 6 16 6 . . 13 . 3 5 . 14 15 2 . 1 . 9 . 2 . 6 2 Melee 19 | . . . . . . . . . . . . . 10 2 . 1 . . . 2 . 2 2 Guns 25 | . 6 5 10 . . . 1 . . . . 2 1 . . . . . . . . . . Cannons 28 | . . 1 4 6 . . 12 . . . . 1 4 . . . . . . . . . . AOE 30 | . . . 1 . . . . . 3 5 . 11 . . . . . 7 . . . 3 . Classes Destroyed 14 | . 2 1 3 . . . 2 . . . . 1 3 1 . . . . . . . 1 . Worker 2 | . . . . . . . . . . . . . . . . . . . . . . 2 . Builder 4 | . . . . . . . . . . . . . . 1 . . . 3 . . . . . Hauler 2 | . . . . . . . 1 . . . . . 1 . . . . . . . . . . Recycler 4 | . . . 1 . . . 2 . . . . . 1 . . . . . . . . . . Operator 2 | . . . . . . . . . . . . . 1 . . . . 1 . . . . . Watcher 4 | . . . 1 . . . . . . . . . . 1 . . . 1 1 . . . . Swarmer 40 | . 2 4 3 3 . . . . 3 3 . 7 2 . . . . 7 . . . 6 . Grunt 30 | . 4 . 7 3 . . 4 . . 1 . 4 4 . . . . 1 . . . . 2 Brawler 3 | . . . . . . . 1 . . . . 1 . . . 1 . . . . . . . Duelist 2 | . . . 1 . . . . . . 1 . . . . . . . . . . . . . Sentry 24 | . . 2 5 . . . 8 . . . . 1 3 2 . . . 1 . 2 . . . Hunter 2 | . . . . . . . . . . . . . 2 . . . . . . . . . . Programmer 4 | . . . . . . . . . . . . . 4 . . . . . . . . . . Behemoth 1 | . . . . . . . . . . . . 1 . . . . . . . . . . . Best Kill Streak 6 | . 2 2 3 3 . . 3 . 3 3 . 4 2 2 . 1 . 6 1 1 . 6 2 Combat Bots Only 4 | . 2 2 3 3 . . 2 . 3 3 . 4 2 2 . 1 . 4 . 1 . 4 2 Max Kills in Single Turn 3 | . 1 1 2 2 . . 1 . 2 2 . 3 1 1 . 1 . 3 1 1 . 2 1 Gunslinging . | . . . . . . . . . . . . . . . . . . . . . . . . Exploded 3 | . . . 1 . . . . . 2 2 . 3 . . . . . 3 . . . 1 . Melee 1 | . . . . . . . . . . . . . 1 1 . 1 . . . 1 . 1 1 Uniques/NPCs Destroyed . | . . . . . . . . . . . . . . . . . . . . . . . . Combat | -11 -10 -10 -9 -9 -9 -8 -8 -7 -7 -7 -7 -6 -6 -5 -5 -5 -4 -4 -4 -4 -4 -3 -3 -------- Run | Scr Mat Min Mat Min Exi Min Mat Fac Low Low Dat Pro Fac Fac Upp Upp Fac Ext Cet Arc Hub Res Qua Damage Taken 7450 | . 206 140 985 116 . . 748 51 5 59 . 754 679 435 94 148 15 208 573 300 191 490 1253 Core 1751 | . 50 11 147 12 . . 205 . . 5 . 42 42 105 17 31 . 54 127 115 69 141 578 Absorbed by Shields 373 | . . . . . . . 231 93 3 . . 46 . . . . . . . . . . . Core Remaining (%) 79 | 100 . 75 . . . 60 62 . . . . 93 95 . . 84 . . . . 68 . . Volleys Fired 295 | . 19 15 48 15 . . 51 7 2 9 . 37 32 6 . . 2 34 10 3 1 4 . Largest 2 | . 2 2 2 2 . . 2 2 1 1 . 2 2 1 . . 1 1 1 1 1 1 . Hottest 150 | . 90 136 150 150 . . 95 130 33 33 . 145 145 75 . . . 46 46 94 46 46 . Shots Fired 446 | . 32 22 85 27 . . 97 9 2 9 . 58 45 6 . . 2 34 10 3 1 4 . Gun 210 | . 32 18 55 6 . . 48 7 . . . 31 10 . . . . . . 3 . . . Cannon 134 | . . . 15 21 . . 49 2 . . . 6 35 6 . . . . . . . . . Launcher 49 | . . . . . . . . . 2 9 . 21 . . . . . 8 4 . 1 4 . Special 53 | . . 4 15 . . . . . . . . . . . . . 2 26 6 . . . . Kinetic 53 | . . . . 6 . . 47 . . . . . . . . . . . . . . . . Thermal 227 | . 32 22 51 21 . . 49 2 . . . 6 35 6 . . . . . 3 . . . Explosive 44 | . . . . . . . . . 2 9 . 21 . . . . . 8 4 . . . . Electromagnetic 88 | . . . 34 . . . 1 7 . . . 31 10 . . . . . . . 1 4 . Robot Hit Streak 60 | . 13 9 37 17 . . 51 60 . 5 . 18 23 29 . . . 38 7 5 . 6 . Robot Miss Streak 2 | . 1 1 1 2 . . 1 . 1 . . 2 1 . . . . 1 1 . . 1 . Penetration Max . | . . . . . . . . . . . . . . . . . . . . . . . . Secondary Targets 1 | . . . 1 . . . . . . . . . . . . . . . . . . . . Max Gunslinging Chain 1 | . . . 1 . . . . . . . . . . . . . . . . . . . . Shots Hit Robots 399 | . 27 15 72 21 . . 75 9 . 5 . 43 59 20 . 2 . 13 6 15 . 10 7 Core Hits 217 | . 12 8 28 10 . . 28 3 6 9 . 32 24 6 . 1 . 17 11 5 . 12 5 Critical Hits 6 | . . . . . . . 1 . . . . . 3 2 . . . . . . . . . Critical Kills 2 | . . . . . . . . . . . . . 2 . . . . . . . . . . Critical Parts Destroyed 3 | . . . . . . . 1 . . . . . 1 1 . . . . . . . . . Melee Attacks 144 | . . . . . . . . . . . . . 47 29 3 12 . 1 . 13 3 14 22 Impact . | . . . . . . . . . . . . . . . . . . . . . . . . Slashing 106 | . . . . . . . . . . . . . 47 29 3 12 . 1 . 13 1 . . Piercing 38 | . . . . . . . . . . . . . . . . . . . . . 2 14 22 Sneak Attacks 7 | . . . . . . . . . . . . . 2 1 . 2 . . . . . 2 . Combat Hostiles 1 | . . . . . . . . . . . . . 1 . . . . . . . . . . Follow-up Attacks 1 | . . . . . . . . . . . . . . . . . . . . . . . 1 Damage Inflicted 12782 | . 307 158 1269 444 . . 1381 116 215 345 . 1741 2288 884 . 202 . 1221 646 584 55 641 285 Guns 1944 | . 304 145 785 36 . . 275 66 . . . 212 64 . . . . . . 57 . . . Cannons 2978 | . . . 350 400 . . 1100 50 . . . 127 801 150 . . . . . . . . . Explosions 4130 | . . . 39 . . . . . 215 345 . 1398 . . . . . 1152 646 . 55 280 . Melee 3601 | . . . . . . . . . . . . . 1423 734 . 202 . 69 . 527 . 361 285 Ramming 27 | . 3 2 4 8 . . 6 . . . . 4 . . . . . . . . . . . Kinetic 298 | . . . . 36 . . 262 . . . . . . . . . . . . . . . . Thermal 3929 | . 304 156 784 400 . . 1100 50 . . . 127 801 150 . . . . . 57 . . . Explosive 3756 | . . . . . . . . . 215 345 . 1398 . . . . . 1152 646 . . . . Electromagnetic 1171 | . . . 481 . . . 13 66 . . . 212 64 . . . . . . . 55 280 . Impact . | . . . . . . . . . . . . . . . . . . . . . . . . Slashing 2955 | . . . . . . . . . . . . . 1423 734 . 202 . 69 . 527 . . . Piercing 646 | . . . . . . . . . . . . . . . . . . . . . . 361 285 Highest Corruption 6 | . . . 1 1 1 1 . . . . . . 1 . . . . . 1 1 1 . 6 Average Corruption 1 | . . . 1 1 1 1 . . . . . . 1 . . . . . 1 1 1 . 3 Corruption Purged . | . . . . . . . . . . . . . . . . . . . . . . . . Effects 18 | . . . 2 5 3 2 . . . . . . 2 . . . . . . . 1 . 3 Message Errors 9 | . . . . 3 1 1 . . . . . . 1 . . . . . . . . . 3 Energy Discharges 5 | . . . . 1 2 . . . . . . . 1 . . . . . . . 1 . . Data Loss (minor) 3 | . . . 1 1 . 1 . . . . . . . . . . . . . . . . . Weapon Failures 1 | . . . 1 . . . . . . . . . . . . . . . . . . . . Overload Shots . | . . . . . . . . . . . . . . . . . . . . . . . . Overflow Damage 540 | . . . . . . . 67 . . 1 . 47 201 102 . . . 36 . . 2 84 . Projectiles 67 | . . . . . . . 67 . . . . . . . . . . . . . . . . Explosions 91 | . . . . . . . . . . 1 . 47 . . . . . 36 . . 2 5 . Melee 382 | . . . . . . . . . . . . . 201 102 . . . . . . . 79 . Knockbacks . | . . . . . . . . . . . . . . . . . . . . . . . . Impact . | . . . . . . . . . . . . . . . . . . . . . . . . Kinetic . | . . . . . . . . . . . . . . . . . . . . . . . . Secondary . | . . . . . . . . . . . . . . . . . . . . . . . . Self-Inflicted Damage 181 | . . . . 3 . . . . . 36 . 28 . . . . . 39 . . 74 1 . Shots 8 | . . . . . . . . . . 3 . 1 . . . . . 1 . . 2 1 . Rammed 1 | . . . . 1 . . . . . . . . . . . . . . . . . . . Targets Rammed 8 | . 1 1 1 2 . . 2 . . . . 1 . . . . . . . . . . . Kicked 7 | . 1 1 1 1 . . 2 . . . . 1 . . . . . . . . . . . Crushed . | . . . . . . . . . . . . . . . . . . . . . . . . Highest Temperature 604 | . 234 274 604 248 . . 561 135 . . . 8 30 316 409 . . . . 126 . 16 6 Average Temperature 140 | . 102 81 160 96 . . 180 58 . . . 3 6 124 237 . . . . 54 . 11 6 Received Heat Transfer 2590 | . 144 45 588 102 . . 463 39 . 6 . 282 198 144 33 45 9 78 72 54 9 27 252 Effects 34 | . 2 1 5 . . . 16 . . . . . . 1 9 . . . . . . . . Shutdowns 10 | . . . 1 . . . 5 . . . . . . . 4 . . . . . . . . Energy Bleed 8 | . . 1 2 . . . 3 . . . . . . . 2 . . . . . . . . Interference 6 | . 2 . . . . . 3 . . . . . . 1 . . . . . . . . . Matter Decay 1 | . . . 1 . . . . . . . . . . . . . . . . . . . . Short Circuit 2 | . . . 1 . . . 1 . . . . . . . . . . . . . . . . Damage (minor) 5 | . . . . . . . 2 . . . . . . . 3 . . . . . . . . Damage (core) 2 | . . . . . . . 2 . . . . . . . . . . . . . . . . Siege Activations . | . . . . . . . . . . . . . . . . . . . . . . . . Robots Corrupted 1 | . . . . . . . . . . . . . . . . . . . . . . 1 . Combat Hostiles 1 | . . . . . . . . . . . . . . . . . . . . . . 1 . Parts Fried 3 | . . . 1 . . . . . . . . 1 . . . . . . . . . 1 . Impact Corruptions . | . . . . . . . . . . . . . . . . . . . . . . . . Robots Melted 1 | . . . 1 . . . . . . . . . . . . . . . . . . . . Combat Hostiles 1 | . . . 1 . . . . . . . . . . . . . . . . . . . . Parts Melted 19 | . 2 . 7 2 . . 3 . . . . . 4 . . . . . . 1 . . . Heat Transferred 7042 | . 782 428 1935 592 . . 1628 74 . . . 185 1122 222 . . . . . 74 . . . Parts Sabotaged 2 | . . . . . . . . . . . . . . . . . . . . . . . 2 Parts Stolen . | . . . . . . . . . . . . . . . . . . . . . . . . Parts Stripped . | . . . . . . . . . . . . . . . . . . . . . . . . Power Chain Reactions 2 | . . . 1 . . . . . . . . . . . . . . . . . . 1 . Missiles Intercepted . | . . . . . . . . . . . . . . . . . . . . . . . . Alert | -11 -10 -10 -9 -9 -9 -8 -8 -7 -7 -7 -7 -6 -6 -5 -5 -5 -4 -4 -4 -4 -4 -3 -3 ------- Run | Scr Mat Min Mat Min Exi Min Mat Fac Low Low Dat Pro Fac Fac Upp Upp Fac Ext Cet Arc Hub Res Qua Peak Influence 1741 | . 148 184 255 315 . . 240 91 . . . . 252 118 . . 223 619 368 168 323 294 1741 Initial 259 | . . 20 . 44 . . . 31 . . . . . 63 . . 193 76 259 94 40 127 44 Average 124 | . 56 51 90 99 . . 73 43 . . . . 71 58 . . 195 451 321 117 147 123 1656 Maximum Alert Level 5 | . . . 1 1 . . 1 . . . . . 1 . . . 1 2 1 . 1 1 5 Low Security (%) 88 | 100 100 100 95 70 . 100 97 100 . . . . 98 100 . . 85 12 . 100 64 82 . Level 1 6 | . . . 4 29 . . 2 . . . . . 1 . . . 14 16 100 . 35 17 . Level 2 2 | . . . . . . . . . . . . . . . . . . 71 . . . . . Level 3 . | . . . . . . . . . . . . . . . . . . . . . . . . Level 4 . | . . . . . . . . . . . . . . . . . . . . . . . . Level 5 . | . . . . . . . . . . . . . . . . . . . . . . . . High Security . | . . . . . . . . . . . . . . . . . . . . . . . . Max Security 2 | . . . . . . . . . . . . . . . . . . . . . . . 99 Squads Dispatched 37 | . . . 4 . . . 3 1 . . . . 8 . . 1 . 1 1 . 2 4 12 Investigation 8 | . . . . . . . 2 . . . . . 3 . . . . 1 1 . 1 . . Extermination 4 | . . . . . . . . 1 . . . . 3 . . . . . . . . . . Reinforcement 11 | . . . 4 . . . . . . . . . 2 . . . . . . . 1 4 . Assault 13 | . . . . . . . . . . . . . . . . 1 . . . . . . 12 Garrison 1 | . . . . . . . 1 . . . . . . . . . . . . . . . . Intercept . | . . . . . . . . . . . . . . . . . . . . . . . . Construction Impeded 1 | . . . . . . . . . . . . . . . . . . . . . . 1 . Haulers Reinforced . | . . . . . . . . . . . . . . . . . . . . . . . . Stealth | -11 -10 -10 -9 -9 -9 -8 -8 -7 -7 -7 -7 -6 -6 -5 -5 -5 -4 -4 -4 -4 -4 -3 -3 --------- Run | Scr Mat Min Mat Min Exi Min Mat Fac Low Low Dat Pro Fac Fac Upp Upp Fac Ext Cet Arc Hub Res Qua Distress Signals 14 | . . . 3 . . . 5 . . . . . 2 . . . . 3 . . . 1 . Communications Jammed 82 | . . . . . . . . . . . . . . . . . . . . . . . 82 Distress Signals 81 | . . . . . . . . . . . . . . . . . . . . . . . 81 Times Spotted 331 | . 15 6 40 12 . . 38 2 4 5 . 16 36 3 10 26 1 13 6 4 14 15 65 Peak Tracking Total 46 | . 5 2 7 3 . . 7 2 2 2 . 4 6 2 6 14 1 4 5 2 19 8 46 Tactical Retreats 37 | . . . 5 . . . 6 2 . . . 3 6 . 2 9 . . . . 1 3 . Traps | -11 -10 -10 -9 -9 -9 -8 -8 -7 -7 -7 -7 -6 -6 -5 -5 -5 -4 -4 -4 -4 -4 -3 -3 ------- Run | Scr Mat Min Mat Min Exi Min Mat Fac Low Low Dat Pro Fac Fac Upp Upp Fac Ext Cet Arc Hub Res Qua Traps Triggered 16 | . 3 . 3 . . . 3 . . . . . 3 1 . . . 1 . . . 1 1 Indirectly 1 | . . . . . . . . . . . . . . . . . . . . . . 1 . Trap Hack Attempts . | . . . . . . . . . . . . . . . . . . . . . . . . Triggered . | . . . . . . . . . . . . . . . . . . . . . . . . Disarmed . | . . . . . . . . . . . . . . . . . . . . . . . . Reprogrammed 6 | . . . . . . . 6 . . . . . . . . . . . . . . . . Reused 2 | . . . . . . . 2 . . . . . . . . . . . . . . . . Traps Extracted . | . . . . . . . . . . . . . . . . . . . . . . . . Installed 1 | . . . . . . . . . . . . . . . . 1 . . . . . . . Triggered 2 | . . . . . . . 2 . . . . . . . . . . . . . . . . Machines | -11 -10 -10 -9 -9 -9 -8 -8 -7 -7 -7 -7 -6 -6 -5 -5 -5 -4 -4 -4 -4 -4 -3 -3 ---------- Run | Scr Mat Min Mat Min Exi Min Mat Fac Low Low Dat Pro Fac Fac Upp Upp Fac Ext Cet Arc Hub Res Qua Machines Disabled 18 | . . 1 . . . . 1 . . . . 1 . . . 1 . 6 . . 4 . 4 Max in Single Turn 4 | . . 1 . . . . 1 . . . . 1 . . . 1 . 2 . . 4 . 1 Garrison Access 5 | . . . . . . . 1 . . . . . 2 1 . . . . . . 1 . . Network Hub 1 | . . . . . . . . . . . . . . . . . . . . . 1 . . Machines Sabotaged . | . . . . . . . . . . . . . . . . . . . . . . . . Garrisons Compromised . | . . . . . . . . . . . . . . . . . . . . . . . . Overloaded Fab Kills . | . . . . . . . . . . . . . . . . . . . . . . . . Fab Network Shutdowns . | . . . . . . . . . . . . . . . . . . . . . . . . Hacking | -11 -10 -10 -9 -9 -9 -8 -8 -7 -7 -7 -7 -6 -6 -5 -5 -5 -4 -4 -4 -4 -4 -3 -3 --------- Run | Scr Mat Min Mat Min Exi Min Mat Fac Low Low Dat Pro Fac Fac Upp Upp Fac Ext Cet Arc Hub Res Qua Machines Accessed 72 | . 6 . 10 . 1 . 11 . . 1 2 . 13 8 . 1 . 5 2 . 5 7 . Terminals 50 | . 6 . 8 . . . 6 . . 1 . . 7 4 . . . 5 2 . 4 7 . Fabricators 3 | . . . . . . . . . . . . . 1 2 . . . . . . . . . Repair Stations 4 | . . . 1 . . . 2 . . . . . 1 . . . . . . . . . . Recycling Units . | . . . . . . . . . . . . . . . . . . . . . . . . Scanalyzers 6 | . . . 1 . . . 2 . . . . . 2 1 . . . . . . . . . Garrison Access 5 | . . . . . . . 1 . . . . . 2 1 . . . . . . 1 . . Total Hacks 232 | . 14 . 35 . 1 . 47 . . 1 11 . 39 34 . 1 . 15 5 . 9 20 . Successful 187 | . 9 . 30 . 1 . 39 . . 1 11 . 27 30 . 1 . 11 5 . 8 14 . Failed 45 | . 5 . 5 . . . 8 . . . . . 12 4 . . . 4 . . 1 6 . Catastrophic 1 | . . . . . . . 1 . . . . . . . . . . . . . . . . Database Lockouts . | . . . . . . . . . . . . . . . . . . . . . . . . Manual 97 | . 11 . 17 . 1 . 15 . . . . . 16 17 . 1 . 7 . . 2 10 . Terminals 150 | . 14 . 25 . . . 22 . . 1 . . 22 18 . . . 15 5 . 8 20 . Fabricators 12 | . . . . . . . . . . . . . 3 9 . . . . . . . . . Repair Stations 8 | . . . 2 . . . 4 . . . . . 2 . . . . . . . . . . Recycling Units . | . . . . . . . . . . . . . . . . . . . . . . . . Scanalyzers 40 | . . . 8 . . . 20 . . . . . 6 6 . . . . . . . . . Garrison Access 9 | . . . . . . . 1 . . . . . 6 1 . . . . . . 1 . . Terminal Hacks 69 | . 3 . 8 . 1 . 5 . . 1 11 . 6 4 . 1 . 7 5 . 6 11 . Record 13 | . . . . . . . . . . 1 . . . . . 1 . 3 4 . 1 3 . Part Schematic 11 | . 1 . . . . . . . . . 6 . 1 1 . . . 2 . . . . . Robot Schematic 5 | . . . . . . . . . . . 5 . . . . . . . . . . . . Robot Analysis 5 | . . . 1 . . . . . . . . . . . . . . 1 . . 2 1 . Prototype ID Bank 2 | . . . 2 . . . . . . . . . . . . . . . . . . . . Open Door 1 | . . . . . . . . . . . . . . . . . . . 1 . . . . Level Access Points 2 | . . . . . . . . . . . . . 1 . . . . . . . 1 . . Branch Access Points 1 | . . . . . . . . . . . . . . 1 . . . . . . . . . Emergency Access Points 1 | . . . . . . . 1 . . . . . . . . . . . . . . . . Terminal Index 3 | . . . 1 . . . . . . . . . 1 . . . . . . . . 1 . Fabricator Index 1 | . . . . . . . . . . . . . . 1 . . . . . . . . . Scanalyzer Index 1 | . . . . . . . . . . . . . . 1 . . . . . . . . . Unreport Threat 3 | . . . . . . . . . . . . . 1 . . . . . . . . 2 . Locate Traps 1 | . . . . . . . 1 . . . . . . . . . . . . . . . . Reprogram Traps 1 | . . . . . . . 1 . . . . . . . . . . . . . . . . Dispatch Records 1 | . . . . . . . 1 . . . . . . . . . . . . . . . . Reinforcement Status 1 | . . . . . . . . . . . . . . . . . . . . . . 1 . Recall Reinforcements 2 | . . . . . . . . . . . . . . . . . . . . . 1 1 . Recall Assault 3 | . . . . . . . . . . . . . 1 . . . . . . . 1 1 . Hauler Manifests 3 | . 1 . 1 . . . 1 . . . . . . . . . . . . . . . . Registered Components 1 | . 1 . . . . . . . . . . . . . . . . . . . . . . Registered Prototypes 2 | . . . 1 . . . . . . . . . 1 . . . . . . . . . . Zone Layout 4 | . . . 2 . . . . . . . . . . . . . . 1 . . . 1 . EX-Prototype ID Bank 1 | . . . . . 1 . . . . . . . . . . . . . . . . . . Fabricator Hacks 11 | . . . . . . . . . . . . . 2 9 . . . . . . . . . Load Schematic 6 | . . . . . . . . . . . . . 1 5 . . . . . . . . . Build 5 | . . . . . . . . . . . . . 1 4 . . . . . . . . . Repair Station Hacks 7 | . . . 2 . . . 4 . . . . . 1 . . . . . . . . . . Scan Component 4 | . . . 1 . . . 2 . . . . . 1 . . . . . . . . . . Repair 3 | . . . 1 . . . 2 . . . . . . . . . . . . . . . . Recycling Unit Hacks . | . . . . . . . . . . . . . . . . . . . . . . . . Scanalyzer 40 | . . . 8 . . . 20 . . . . . 6 6 . . . . . . . . . Insert Component 18 | . . . 4 . . . 9 . . . . . 3 2 . . . . . . . . . Analyze 22 | . . . 4 . . . 11 . . . . . 3 4 . . . . . . . . . Garrison Access Hacks 5 | . . . . . . . 1 . . . . . 2 1 . . . . . . 1 . . Seal Access 5 | . . . . . . . 1 . . . . . 2 1 . . . . . . 1 . . Unauthorized Hacks 55 | . 6 . 12 . . . 9 . . . . . 10 10 . . . 4 . . 1 3 . Terminals 55 | . 6 . 12 . . . 9 . . . . . 10 10 . . . 4 . . 1 3 . Track 8 | . . . 2 . . . 1 . . . . . 2 2 . . . . . . . 1 . Assimilate 3 | . . . 1 . . . 1 . . . . . . 1 . . . . . . . . . Botnet 33 | . 6 . 7 . . . 5 . . . . . 6 4 . . . 3 . . 1 1 . Disrupt 1 | . . . 1 . . . . . . . . . . . . . . . . . . . . Operators 10 | . . . 1 . . . 2 . . . . . 2 3 . . . 1 . . . 1 . Fabricators . | . . . . . . . . . . . . . . . . . . . . . . . . Repair Stations . | . . . . . . . . . . . . . . . . . . . . . . . . Recycling Units . | . . . . . . . . . . . . . . . . . . . . . . . . Scanalyzers . | . . . . . . . . . . . . . . . . . . . . . . . . Garrison Access . | . . . . . . . . . . . . . . . . . . . . . . . . Data Cores Recovered 1 | . . . . . . . . . . . . . 1 . . . . . . . . . . Used 1 | . . . . . . . . . . . . . 1 . . . . . . . . . . Hacking Detections 49 | . 4 . 7 . . . 8 . . . . . 11 4 . . . 3 1 . 4 7 . Full Trace Events 8 | . . . 1 . . . 3 . . . . . 2 . . . . . 1 . 1 . . Feedback Events 1 | . . . . . . . . . . . . . . . . . . . 1 . . . . Corruption 1 | . . . . . . . . . . . . . . . . . . . 1 . . . . Feedback Blocked . | . . . . . . . . . . . . . . . . . . . . . . . . Robot Schematics Acquired 5 | . . . . . . . . . . . 5 . . . . . . . . . . . . Robots Built . | . . . . . . . . . . . . . . . . . . . . . . . . Matter . | . . . . . . . . . . . . . . . . . . . . . . . . Time . | . . . . . . . . . . . . . . . . . . . . . . . . Total Robot Build Rating . | . . . . . . . . . . . . . . . . . . . . . . . . Part Schematics Acquired 25 | . 1 . 3 . . . 8 . . . 6 . 2 3 . . . 2 . . . . . Parts Built 6 | . . . . . . . . . . . . . 1 5 . . . . . . . . . Matter 990 | . . . . . . . . . . . . . 146 844 . . . . . . . . . Time 275 | . . . . . . . . . . . . . 24 251 . . . . . . . . . Total Part Build Rating 29 | . . . . . . . . . . . . . 3 26 . . . . . . . . . Parts Repaired 3 | . . . 1 . . . 2 . . . . . . . . . . . . . . . . Time 108 | . . . 32 . . . 76 . . . . . . . . . . . . . . . . Parts Recycled . | . . . . . . . . . . . . . . . . . . . . . . . . Recycled Matter . | . . . . . . . . . . . . . . . . . . . . . . . . Retrieved Matter . | . . . . . . . . . . . . . . . . . . . . . . . . Retrieved Components . | . . . . . . . . . . . . . . . . . . . . . . . . Parts Scanalyzed 17 | . . . 4 . . . 8 . . . . . 3 2 . . . . . . . . . Part Schematics Acquired 14 | . . . 3 . . . 8 . . . . . 1 2 . . . . . . . . . Parts Damaged . | . . . . . . . . . . . . . . . . . . . . . . . . Bothacking | -11 -10 -10 -9 -9 -9 -8 -8 -7 -7 -7 -7 -6 -6 -5 -5 -5 -4 -4 -4 -4 -4 -3 -3 ------------ Run | Scr Mat Min Mat Min Exi Min Mat Fac Low Low Dat Pro Fac Fac Upp Upp Fac Ext Cet Arc Hub Res Qua Used RIF Installer . | . . . . . . . . . . . . . . . . . . . . . . . . Robots Hacked . | . . . . . . . . . . . . . . . . . . . . . . . . Non-combat . | . . . . . . . . . . . . . . . . . . . . . . . . Combat . | . . . . . . . . . . . . . . . . . . . . . . . . Robot Hacks Applied . | . . . . . . . . . . . . . . . . . . . . . . . . Relay Couplers Released . | . . . . . . . . . . . . . . . . . . . . . . . . Robots Rewired 1 | . . . . . . . . 1 . . . . . . . . . . . . . . . Allies Hacked . | . . . . . . . . . . . . . . . . . . . . . . . . Hacks Repelled . | . . . . . . . . . . . . . . . . . . . . . . . . Allies | -11 -10 -10 -9 -9 -9 -8 -8 -7 -7 -7 -7 -6 -6 -5 -5 -5 -4 -4 -4 -4 -4 -3 -3 -------- Run | Scr Mat Min Mat Min Exi Min Mat Fac Low Low Dat Pro Fac Fac Upp Upp Fac Ext Cet Arc Hub Res Qua Total Allies 9 | . . . . 3 . . . 1 . . . 1 . . . . . 4 . . . . . Largest Group 4 | . . . . 3 3 3 3 1 1 1 . 1 . . . . . 4 2 . . . . Highest-Rated Group 162 | . . . . 40 40 40 40 32 32 32 . 94 . . . . . 162 95 . . . . Highest-Rated Ally 94 | . . . . 16 16 16 16 32 32 32 . 94 . . . . . 49 49 . . . . Total Orders 2 | . . . . . . . . . . . . . . . 2 . . . . . . . . EXPLORE 2 | . . . . . . . . . . . . . . . 2 . . . . . . . . Ally Attacks 95 | . . . . 30 . . 28 . . 3 . 6 . . . . . 14 14 . . . . Total Damage 1519 | . . . . 294 . . 289 . . 71 . 179 . . . . . 324 362 . . . . Kills 20 | . . . . 5 . . 4 . . 1 . 2 . . . . . 4 4 . . . . Allies Corrupted . | . . . . . . . . . . . . . . . . . . . . . . . . Allies Melted 1 | . . . . . . . . . . . . 1 . . . . . . . . . . . Intel | -11 -10 -10 -9 -9 -9 -8 -8 -7 -7 -7 -7 -6 -6 -5 -5 -5 -4 -4 -4 -4 -4 -3 -3 ------- Run | Scr Mat Min Mat Min Exi Min Mat Fac Low Low Dat Pro Fac Fac Upp Upp Fac Ext Cet Arc Hub Res Qua Robot Analysis Total 5 | . . . 1 . . . . . . . . . . . . . . 1 . . 2 1 . Derelict Logs Recovered 11 | . . . . 1 . . . . 1 2 . 3 . . 2 2 . . . . . . . Drone Launches 5 | . . . . . . . . . . . . . . . 5 . . . . . . . . Drone Recoveries 3 | . . . . . . . . . . . . . . . 3 . . . . . . . . Exploration | -11 -10 -10 -9 -9 -9 -8 -8 -7 -7 -7 -7 -6 -6 -5 -5 -5 -4 -4 -4 -4 -4 -3 -3 ------------- Run | Scr Mat Min Mat Min Exi Min Mat Fac Low Low Dat Pro Fac Fac Upp Upp Fac Ext Cet Arc Hub Res Qua Turns Passed 13844 | 75 645 627 1070 756 350 592 1530 253 406 775 330 1369 2329 783 169 326 70 396 92 140 147 388 226 Spaces Moved 12816 | 37 425 343 634 576 288 480 843 93 263 498 218 961 2063 980 511 996 197 589 217 87 406 823 288 Core 21 | 16 . . . . . . . . . . . . 1 . . . . . . . . . 4 Treads . | . . . . . . . . . . . . . . . . . . . . . . . . Legs 6726 | 21 425 343 634 576 288 480 843 93 263 498 218 961 1083 . . . . . . . . . . Wheels . | . . . . . . . . . . . . . . . . . . . . . . . . Hover . | . . . . . . . . . . . . . . . . . . . . . . . . Flight 6069 | . . . . . . . . . . . . . 979 980 511 996 197 589 217 87 406 823 284 Fastest Speed 26 | 50 120 150 120 120 120 120 120 122 152 152 152 122 29 26 26 29 27 28 28 30 30 29 34 Average Speed 84 | 171 132 150 123 120 120 120 138 141 152 152 152 131 79 35 28 29 28 28 29 72 30 33 44 Slowest Speed 550 | 300 150 150 150 120 120 120 180 152 152 152 152 152 200 114 100 29 29 28 30 100 34 106 550 Overloaded Moves . | . . . . . . . . . . . . . . . . . . . . . . . . Propulsion Burnouts . | . . . . . . . . . . . . . . . . . . . . . . . . Robots Hopped 1 | . . . . . . . . . . . . . . . 1 . . . . . . . . Cave-ins Triggered 1 | . . . . . . . . . . . . . . . . . . . . . . . 1 Exploration Rate (%) 59 | 4 74 71 60 99 70 99 69 3 44 71 71 98 45 29 75 81 8 66 83 75 44 27 53 Regions Visited 23 Branch Regions 15 Pre-discovered Areas 5 | . . 1 . 1 . . . . . . . 1 . . 2 . . . . . . . . Known Exits Taken 23 | 1 1 1 1 1 1 1 1 1 1 1 1 1 1 1 1 1 1 1 1 1 1 1 . Unknown Exits Taken . | . . . . . . . . . . . . . . . . . . . . . . . . Scrap Searched 16 | . . . . . . . . . 2 7 . 1 . . 2 4 . . . . . . . Spaces Dug 64 | . . . . . . . . . . . . 1 24 15 3 9 . . . 1 3 1 7 Terrain Destroyed 606 | . . . 1 5 . . 4 . 11 55 . 108 26 15 3 9 . 116 67 2 173 4 7 Melee 60 | . . . . . . . . . . . . . 21 15 3 9 . . . 1 3 1 7 Projectile 17 | . . . 1 5 . . 4 . . . . 1 5 . . . . . . 1 . . . AOE 529 | . . . . . . . . . 11 55 . 107 . . . . . 116 67 . 170 3 . Terrain Rammed . | . . . . . . . . . . . . . . . . . . . . . . . . Walls Destroyed . | . . . . . . . . . . . . . . . . . . . . . . . . Machines Disabled . | . . . . . . . . . . . . . . . . . . . . . . . . Actions | -11 -10 -10 -9 -9 -9 -8 -8 -7 -7 -7 -7 -6 -6 -5 -5 -5 -4 -4 -4 -4 -4 -3 -3 --------- Run | Scr Mat Min Mat Min Exi Min Mat Fac Low Low Dat Pro Fac Fac Upp Upp Fac Ext Cet Arc Hub Res Qua Total 15107 | 46 471 429 825 614 292 495 1116 206 266 507 217 1003 2667 1379 531 1021 207 760 229 146 427 911 342 Wait 1574 | . 15 63 107 18 4 14 192 97 . . . . 464 337 10 8 . 122 . 41 13 47 22 Move 12791 | 36 424 342 633 575 287 479 842 92 262 497 217 960 2062 979 508 995 196 588 216 86 405 822 288 Hop 1 | . . . . . . . . . . . . . . . 1 . . . . . . . . Pick Up 45 | 4 3 2 7 . 1 . 8 . . . . . 9 2 1 3 1 1 . . 1 . 2 Fast Attach 83 | 6 5 1 8 2 . . 9 1 1 1 . 1 10 9 2 . 3 1 . 1 . 14 8 Attach 51 | . 2 1 4 1 . 1 2 1 . . . 2 12 5 3 . 2 6 2 2 2 3 . Detach 22 | . . . . . . . 1 1 . . . . 3 5 2 . . 5 1 . 2 1 1 Swap 21 | . 2 2 5 . . 1 2 2 1 . . 1 5 . . . . . . . . . . Drop 65 | . . 2 12 1 . . 7 1 . . . 1 20 7 1 2 3 2 . . . 6 . Fire 295 | . 19 15 48 15 . . 51 7 2 9 . 37 32 6 . . 2 34 10 3 1 4 . Melee 143 | . . . . . . . . . . . . . 47 29 3 12 . 1 . 13 3 14 21 Ram . | . . . . . . . . . . . . . . . . . . . . . . . . Kick 8 | . 1 1 1 2 . . 2 . . . . 1 . . . . . . . . . . . Crush . | . . . . . . . . . . . . . . . . . . . . . . . . Escape Stasis 3 | . . . . . . . . . . . . . 3 . . . . . . . . . . Rewire 4 | . . . . . . . . 4 . . . . . . . . . . . . . . . Trap 1 | . . . . . . . . . . . . . . . . 1 . . . . . . . Miscellaneous . | . . . . . . . . . . . . . . . . . . . . . . . . Route ------- -11/Scrapyard -10/Materials (discovered 4 exits: *Mat x3 / *Min) -10/Mines (discovered 2 exits: *Mat x2) -9/Materials (discovered 3 exits: *Mat x2 / *Min) -9/Mines (discovered 3 exits: *Mat x2 / *Exi) -9/Exiles -8/Mines (discovered 2 exits: *Mat x2) -8/Materials (discovered 2 exits: *Fac x2) -7/Factory -7/Lower Caves -7/Lower Caves (discovered 2 exits: *Fac / *Dat) -7/Data Miner -6/Proximity Caves -6/Factory (discovered 5 exits: *Fac x4 / *Low) -5/Factory (discovered 2 exits: *Upp x2) -5/Upper Caves -5/Upper Caves -4/Factory (discovered 4 exits: *Res / Upp / *Ext / Arm) -4/Extension (discovered 2 exits: *Res / *Cet) -4/Cetus (discovered 2 exits: *Res / *Arc) -4/Archives -4/Hub_04(d) (discovered 4 exits: *Res x4) -3/Research -3/Quarantine History --------- Turn | Location | Event 33 | -11/Scrapyard | Identified exit to Materials 33 | -11/Scrapyard | Discovered exit to Materials (range 16) 76 | -11/Scrapyard | Entered Materials 76 | -10/Materials | Evolved 1 slot: Utility x1 174 | -10/Materials | Identified exit to Materials 174 | -10/Materials | Discovered exit to Materials (range 5) 201 | -10/Materials | Identified exit to Mines 201 | -10/Materials | Discovered exit to Mines (range 15) 297 | -10/Materials | Discovered exit to Materials (range 6) 308 | -10/Materials | Build established: Hacker-Mutant 561 | -10/Materials | Discovered exit to Materials (range 15) 721 | -10/Materials | Entered Mines 735 | -10/Mines | Discovered exit to Materials (range 6) 742 | -10/Mines | Received a Rocket Launcher from a helpful Derelict 904 | -10/Mines | A weapon hastily lodged in a ceiling crevice suddenly fell to the ground 1311 | -10/Mines | Learned location of Storage (-7) 1312 | -10/Mines | Discovered exit to Materials (range 5) 1348 | -10/Mines | Entered Materials 1348 | -9/Materials | Evolved 2 slots: Propulsion x1, Utility x1 1806 | -9/Materials | Identified exit to Materials 1806 | -9/Materials | Discovered exit to Materials (range 11) 1860 | -9/Materials | Repaired Hvy. EM Pulse Gun 2204 | -9/Materials | Discovered exit to Materials (range 16) 2353 | -9/Materials | Identified exit to Mines 2353 | -9/Materials | Discovered exit to Mines (range 17) 2364 | -9/Materials | Lost 3 parts (1p2u) 2418 | -9/Materials | Entered Mines 2488 | -9/Mines | Assisted by bots powering up and referring to "LRC-V3" 2601 | -9/Mines | Discovered exit to Materials (range 12) 2766 | -9/Mines | Discovered exit to Materials (range 5) 2915 | -9/Mines | Found a hidden stash of uninstalled traps 3050 | -9/Mines | Deemed a non-threat by the Exiles lab entrance 3155 | -9/Mines | Identified exit to Exiles 3155 | -9/Mines | Discovered exit to Exiles (range 5) 3174 | -9/Mines | Entered Exiles 3174 | -9/Exiles | Accompanied by 3 allies 3203 | -9/Exiles | Met 8R-AWN 3222 | -9/Exiles | Met EX-HEX 3256 | -9/Exiles | Met EX-BIN 3272 | -9/Exiles | Aligned with FarCom system 3273 | -9/Exiles | Given EX-Vault access code 3303 | -9/Exiles | Opened EX-Vault 3310 | -9/Exiles | Found Longsword +1 3336 | -9/Exiles | Warned to stay clear of 0b10 Research branches 3372 | -9/Exiles | Met EX-DEC 3507 | -9/Exiles | Identified exit to Mines 3507 | -9/Exiles | Discovered exit to Mines (range 12) 3524 | -9/Exiles | Left Exiles lab with Longsword +1 3524 | -9/Exiles | Entered Mines 3524 | -8/Mines | Accompanied by 3 allies 3619 | -8/Mines | Discovered exit to Materials (range 7) 3847 | -8/Mines | Discovered exit to Materials (range 8) 4116 | -8/Mines | Entered Materials 4116 | -8/Materials | Accompanied by 3 allies 4116 | -8/Materials | Evolved 2 slots: Propulsion x1, Utility x1 4198 | -8/Materials | Repaired Carbon-fiber Leg 4311 | -8/Materials | Identified exit to Factory 4311 | -8/Materials | Discovered exit to Factory (range 15) 4356 | -8/Materials | Garrison activated, responded to threat 4621 | -8/Materials | Discovered exit to Factory (range 4) 5389 | -8/Materials | Repaired Hvy. Particle Cannon 5646 | -8/Materials | Entered Factory 5646 | -7/Factory | Evolved 2 slots: Utility x2 5817 | -7/Factory | Identified exit to Lower Caves 5817 | -7/Factory | Discovered exit to Lower Caves (range 11) 5899 | -7/Factory | Entered Lower Caves 5899 | -7/Lower Caves | Accompanied by 1 ally 6051 | -7/Lower Caves | Identified exit to Lower Caves 6201 | -7/Lower Caves | Encountered a Warlord checkpoint 6305 | -7/Lower Caves | Entered another Lower Caves area 6305 | -7/Lower Caves | Accompanied by 1 ally 6398 | -7/Lower Caves | Learned Factory emergency access door positions 6415 | -7/Lower Caves | Identified exit to Factory 6415 | -7/Lower Caves | Discovered exit to Factory (range 5) 6668 | -7/Lower Caves | Attracted the attention of an 0b10 checkpoint 7050 | -7/Lower Caves | Identified exit to Data Miner 7050 | -7/Lower Caves | Discovered exit to Data Miner (range 4) 7080 | -7/Lower Caves | Entered Data Miner 7080 | -7/Data Miner | Identified exit to Proximity Caves 7080 | -7/Data Miner | Discovered exit to Proximity Caves (range 6) 7109 | -7/Data Miner | Met Data Miner 7229 | -7/Data Miner | Received God Mode back door access code from Data Miner 7410 | -7/Data Miner | Entered Proximity Caves 7426 | -6/Proximity Caves | Learned location of Zion (-6) 7474 | -6/Proximity Caves | Learned location of 1 exit from Factory 7627 | -6/Proximity Caves | Escorted by Enhanced Grunt 7818 | -6/Proximity Caves | Learned Factory emergency access door positions 7875 | -6/Proximity Caves | Attracted the attention of an 0b10 base 7939 | -6/Proximity Caves | Attracted the attention of an 0b10 checkpoint 7961 | -6/Proximity Caves | Discovered exit to Factory (range 15) 8506 | -6/Proximity Caves | Spotted B-75 Beast 8549 | -6/Proximity Caves | Destroyed B-75 Beast 8573 | -6/Proximity Caves | Lost 5 parts (1n2u2w) 8779 | -6/Proximity Caves | Entered Factory 8779 | -6/Factory | Evolved 2 slots: Power x1, Utility x1 8780 | -6/Factory | Identified exit to Lower Caves 8781 | -6/Factory | Identified exit to Factory 9942 | -6/Factory | Build established: Hacker-Assassin 10472 | -6/Factory | Discovered exit to Factory (range 6) 10677 | -6/Factory | Spotted B-75 Beast 10758 | -6/Factory | Fabricated Hacking Suite? 11108 | -6/Factory | Entered another Factory area 11108 | -5/Factory | Spotted B-75 Beast 11108 | -5/Factory | Evolved 2 slots: Propulsion x1, Utility x1 11174 | -5/Factory | Build established: Wizard-Sprinter 11407 | -5/Factory | Fabricated Hacking Suite (x1) 11452 | -5/Factory | Identified exit to Upper Caves 11580 | -5/Factory | Fabricated Adv. Actuator Array (x1) 11693 | -5/Factory | Lost 4 parts (1p1n1u1w) 11796 | -5/Factory | Fabricated Mic. Fission Core (x2) 11875 | -5/Factory | Fabricated Imp. Cesium-ion Thruster (x1) 11891 | -5/Factory | Entered Upper Caves 11928 | -5/Upper Caves | Spotted B-75 Beast 11963 | -5/Upper Caves | Attracted the attention of an 0b10 checkpoint 12022 | -5/Upper Caves | Identified exit to Upper Caves 12022 | -5/Upper Caves | Discovered exit to Upper Caves (range 8) 12035 | -5/Upper Caves | Learned location of Warlord (-4) 12045 | -5/Upper Caves | Learned location of Armory (-4) 12060 | -5/Upper Caves | Entered another Upper Caves area 12067 | -5/Upper Caves | Identified exit to Factory 12067 | -5/Upper Caves | Discovered exit to Factory (range 16) 12103 | -5/Upper Caves | Encountered a Warlord checkpoint 12108 | -5/Upper Caves | Learned location of 1 exit from Factory 12177 | -5/Upper Caves | Attracted the attention of an 0b10 outpost 12286 | -5/Upper Caves | Acquired the password to a Derelict Tinkerer's latest research 12290 | -5/Upper Caves | Found Prototype Special Weapon 12330 | -5/Upper Caves | Caught by Unaware searching for contraband prototypes 12367 | -5/Upper Caves | Learned location of 1 exit from Factory 12386 | -5/Upper Caves | Entered Factory 12386 | -4/Factory | Evolved 2 slots: Propulsion x1, Utility x1 12387 | -4/Factory | Identified exit to Armory 12387 | -4/Factory | Identified exit to Upper Caves 12395 | -4/Factory | Identified Molecular Deconstructor 12445 | -4/Factory | Identified exit to Research 12445 | -4/Factory | Discovered exit to Research (range 16) 12452 | -4/Factory | Identified exit to Extension 12452 | -4/Factory | Discovered exit to Extension (range 13) 12456 | -4/Factory | Entered Extension 12530 | -4/Extension | Rescued a captive Derelict 12600 | -4/Extension | Rescued a captive Derelict 12600 | -4/Extension | Rescued a captive Derelict 12677 | -4/Extension | Rescued a captive Derelict 12810 | -4/Extension | Discovered exit to Research (range 10) 12810 | -4/Extension | Identified exit to Cetus 12810 | -4/Extension | Discovered exit to Cetus (range 6) 12852 | -4/Extension | Entered Cetus 12852 | -4/Cetus | Accompanied by 2 allies 12866 | -4/Cetus | Spotted Cetus Guard 12870 | -4/Cetus | Spotted Cetus Guard 12870 | -4/Cetus | Spotted Cetus Guard 12871 | -4/Cetus | Spotted Cetus Guard 12877 | -4/Cetus | Discovered exit to Research (range 15) 12891 | -4/Cetus | Allies destroyed Cetus Guard 12894 | -4/Cetus | Allies destroyed Cetus Guard 12903 | -4/Cetus | Allies destroyed Cetus Guard 12928 | -4/Cetus | Lost 3 parts (1n1u1w) 12940 | -4/Cetus | Identified exit to Archives 12940 | -4/Cetus | Discovered exit to Archives (range 16) 12942 | -4/Cetus | Incoming investigation squad redirected 12944 | -4/Cetus | Entered Archives 12974 | -4/Archives | Lost 3 parts (2u1w) 13076 | -4/Archives | Unable to access archive contents 13079 | -4/Archives | Identified exit to Hub_04(d) 13079 | -4/Archives | Discovered exit to Hub_04(d) (range 14) 13084 | -4/Archives | Entered Hub_04(d) 13108 | -4/Hub_04(d) | Lost 3 parts (1p1u1w) 13179 | -4/Hub_04(d) | Network Hub disabled 13182 | -4/Hub_04(d) | Spotted Lightning 13182 | -4/Hub_04(d) | Spotted Lightning 13185 | -4/Hub_04(d) | Spotted Lightning 13185 | -4/Hub_04(d) | Spotted Lightning 13185 | -4/Hub_04(d) | Spotted Lightning 13185 | -4/Hub_04(d) | Spotted Lightning 13186 | -4/Hub_04(d) | Spotted Lightning 13231 | -4/Hub_04(d) | Entered Research 13231 | -3/Research | Evolved 2 slots: Power x1, Propulsion x1 13289 | -3/Research | Spotted B-86 Titan 13342 | -3/Research | Lost 4 parts (1p2n1u) 13344 | -3/Research | Found Enh. Force Lance 13612 | -3/Research | Identified exit to Quarantine 13612 | -3/Research | Discovered exit to Quarantine (range 9) 13619 | -3/Research | Entered Quarantine 13620 | -3/Quarantine | Maximum security lockdown engaged 13624 | -3/Quarantine | Found Sigix Corpse 13630 | -3/Quarantine | Found Alien Artifact 13630 | -3/Quarantine | Identified Core Reset Matrix 13630 | -3/Quarantine | Used Core Reset Matrix 13634 | -3/Quarantine | Detected hypermatrix surge 13634 | -3/Quarantine | Sensed 13 artifacts in vicinity 13699 | -3/Quarantine | Cryocooling Duct disabled 13713 | -3/Quarantine | Crushed by falling debris 13714 | -3/Quarantine | Ambient heat levels rising (+20) 13726 | -3/Quarantine | Found Subatomic Replicator 13761 | -3/Quarantine | Build established: Hacker-Mutant 13773 | -3/Quarantine | Found Terrabomb 13773 | -3/Quarantine | Used Terrabomb 13787 | -3/Quarantine | Found Terrabomb 13787 | -3/Quarantine | Used Terrabomb 13815 | -3/Quarantine | Found Terrabomb 13815 | -3/Quarantine | Used Terrabomb 13829 | -3/Quarantine | Spotted Striker 13829 | -3/Quarantine | Spotted Executioner 13835 | -3/Quarantine | Core integrity fell below 50% 13845 | -3/Quarantine | Self-destructed Last Messages --------------- 13826_ L-61 Swordsman unfolds itself. 13826_ M-36 Artificer unfolds itself. 13827_ The unstable cave ceiling collapses. 13828_ C-30 ARC bursts open, deploying its payload. 13828_ P-80 Master unfolds itself. 13828_ Executioner unfolds itself. 13828_ Striker unfolds itself. 13828_ M-36 Artificer unfolds itself. 13828_ Imp. Transmission Jammer destroyed. 13829_ C-30 ARC bursts open, deploying its payload. 13829_ G-73 Enforcer unfolds itself. 13829_ B-74 Champion unfolds itself. 13829_ L-61 Swordsman unfolds itself. 13829_ G-67 Veteran unfolds itself. 13829_ E-15 Imp unfolds itself. 13829_ The unstable cave ceiling collapses. 13829_ I-47 Archangel crushed by falling debris. 13834_ The unstable cave ceiling collapses. 13834_ G-67 Veteran crushed by falling debris. 13843_ Triangulator destroyed. Map ----- +----------------------------------------------------+ | | | | | | | | | | | | | | | | | | | | | | | ?????????????????????????????????????????????????? | | ???????????????????????? ??????????????????????? | | ????????????????????? ???????????????????? | | ??????????????????? ?????????????????? | | ????????????????? ???????????????? | | ??????????????? ??????????????? | | ????????????? ?????????????? | | ???????????? ??????????????? | | ???????????? ???????????????? | | ??????????? ??????????????? | | ????????Y?? ;;;;;;;;;;;;;; ??????????????? | | ????????Y? ; ; ?????????????? | | ????????Y? ; g ; ?????????????? | | ?????????? ; m """"m ; ??????????????? | | ????????? ipgY"@""" ; ??????????????? | | ????????? b#;Ygh"g""" ; ??????????????? | | ???????? #;gll"g""" ;"###???????????? | | ???????? ##egppg"""b ; ???????????? | | ???????? lglg""""" + #??????????? | | ???????? imhY""""" "" #??????????? | | ????????"""""""";;g;emppbY""" "%" #????????### | | ???????? ^ ;gE """ "%" #????##### | | ????????? """;;;;;Kg%Y lg "" #????#T"## | | ?????????" """";;;";;b;;Y%""""""" #?#### "## | | ?????????? "! = !g ;;%%""""""" #?# | | ?????????? " " "" " ### | | ??????????? " " """ " " * " # # | | ??????????? " """ """ "! " "% " ### | | ????????????? G """ " """ " #?# ##### | | ???????????????""?? " """" ! " #?# #???? | | ??????????????"????? |" """ " ### #???? | | ??????????????????? " **# #???# | | ????????????????????""" " =+% #??"" | | ??????????????????? " """ /#= #??"T | | ????????????????????? " """" ] # #? | | ??????????????????????#? """ ## ### #? | | ???????????????????????? ]## #?# # = | | ???????????????????????| ## #?# # | | ??????????????????????# ######?# + | +----------------------------------------------------+ Best States ------------- Heat Dissipation 64 Energy Generation 45 Energy Capacity 955 Matter Stores 300 Matter Capacity 300 Sight Range 16 Terrain Scan Range 14 Terrain Scan Density 10 ECM Strength 3 Jamming Range 12 Power Amplification 20 Additional Mass Support 12 Corruption Prevention 12 Armor Coverage 450 Resistance: KI 55 Resistance: TH 35 Resistance: EX 35 Resistance: EM 60 Resistance: I 35 Resistance: S 35 Resistance: P 35 Propulsion Shielding 33 Weapon Shielding 33 Evasion (%) 64 Offensive Hacking 50 Defensive Hacking 22 Item Schematics ----------------- None Robot Schematics ------------------ None Fabricated ------------ Hacking Suite | x1 | -6/Factory Hacking Suite | x1 | -5/Factory Adv. Actuator Array | x1 | -5/Factory Mic. Fission Core | x2 | -5/Factory Imp. Cesium-ion Thruster | x1 | -5/Factory Alien Tech Used ----------------- Core Reset Matrix Terrabomb Achievements -------------- None Challenges ------------ None Game ------ Seed ComponentArcFrame Manual? 0 Play Time 02:47:17 Cumulative 87.6 hours Start 2020.11.09 @ 19:40:50 End 2020.11.11 @ 17:41:06 Sessions 3 Manual Loads 0 Difficulty Explorer Special Mode Halloween2020/ForbiddenLore Game No. 141 Rogue 0 Adventurer 0 Explorer 141 Win Type - Total 1 Types 1/0/0/0/0/0/0/0/0 Lore% 56 Gallery% 65 Achievement% 50 Wizard Run 0 Options --------- ASCII 0 Keyboard 0 Movement Numpad Keybinds 0 Fullscreen 1 Font 36/Smallcaps Map View 76x50 Tactical HUD 1 Map Filters NONE Filters NONE Steam 1 RUN: 44df5267-9fac-4792-af42-5958e74afdc6